[Event "Late-Titled-Tuesday-Blitz-September-26-2023"]
[Site "Chess.com"]
[Date "2023.09.26"]
[Round "3"]
[White "jinxy2009"]
[Black "Arteler"]
[Result "0-1"]
[WhiteElo "2297"]
[BlackElo "2568"]
[TimeControl "180+1"]
[EndTime "14:26:41 PDT"]
[Termination "Arteler won by resignation"]

1. e4 {[%clk 0:03:00.9]} 1... e6 {[%clk 0:02:56.5]} 2. d4 {[%clk 0:02:59.9]}
2... d5 {[%clk 0:02:56.8]} 3. e5 {[%clk 0:02:59.8]} 3... c5 {[%clk 0:02:57.2]}
4. c3 {[%clk 0:03:00.4]} 4... Qb6 {[%clk 0:02:57.9]} 5. Nf3 {[%clk 0:03:01.1]}
5... Nc6 {[%clk 0:02:58.4]} 6. Bd3 {[%clk 0:03:01.5]} 6... cxd4 {[%clk
0:02:58.6]} 7. O-O {[%clk 0:03:01.6]} 7... Bd7 {[%clk 0:02:59.4]} 8. Re1 {[%clk
0:03:01.1]} 8... Bc5 {[%clk 0:02:57.4]} 9. b4 {[%clk 0:03:00.5]} 9... Bf8 {[%clk
0:02:45.3]} 10. b5 {[%clk 0:02:59.5]} 10... Na5 {[%clk 0:02:43.8]} 11. Nxd4
{[%clk 0:02:59.9]} 11... Rc8 {[%clk 0:02:43.8]} 12. a4 {[%clk 0:02:55.2]} 12...
Nc4 {[%clk 0:02:40.8]} 13. Nd2 {[%clk 0:02:43.7]} 13... Ne7 {[%clk 0:02:26.4]}
14. Nxc4 {[%clk 0:02:39]} 14... dxc4 {[%clk 0:02:27.3]} 15. Be4 {[%clk 0:02:38]}
15... Nd5 {[%clk 0:02:25.4]} 16. a5 {[%clk 0:02:13.4]} 16... Qd8 {[%clk
0:02:21.5]} 17. Bxd5 {[%clk 0:02:13.2]} 17... exd5 {[%clk 0:02:22.4]} 18. e6
{[%clk 0:02:13.9]} 18... fxe6 {[%clk 0:02:16]} 19. Nxe6 {[%clk 0:02:13.1]} 19...
Bxe6 {[%clk 0:01:37.6]} 20. Rxe6+ {[%clk 0:02:11.4]} 20... Kf7 {[%clk
0:01:36.7]} 21. Qg4 {[%clk 0:01:47.5]} 21... h5 {[%clk 0:01:30.8]} 22. Qf5+
{[%clk 0:01:45.9]} 22... Kg8 {[%clk 0:01:31.1]} 23. Bg5 {[%clk 0:01:42.8]} 23...
Qd7 {[%clk 0:01:28.5]} 24. Rae1 {[%clk 0:01:40]} 24... h4 {[%clk 0:01:24.8]} 25.
h3 {[%clk 0:01:37.3]} 25... d4 {[%clk 0:01:16.1]} 26. cxd4 {[%clk 0:01:00.6]}
26... c3 {[%clk 0:01:16.3]} 27. d5 {[%clk 0:00:36.3]} 27... Rh5 {[%clk 0:01:14]}
28. Qg6 {[%clk 0:00:30.1]} 28... Qf7 {[%clk 0:01:12.1]} 29. Qxf7+ {[%clk
0:00:20.1]} 29... Kxf7 {[%clk 0:01:13]} 30. Bc1 {[%clk 0:00:20.3]} 30... Rxd5
{[%clk 0:01:12.2]} 31. R6e4 {[%clk 0:00:20.2]} 31... Rxb5 {[%clk 0:01:05.9]} 32.
Rf4+ {[%clk 0:00:19.5]} 32... Kg8 {[%clk 0:01:05.7]} 33. Rxh4 {[%clk 0:00:20.4]}
33... Rxa5 {[%clk 0:01:05.9]} 34. Kh2 {[%clk 0:00:17.5]} 34... Ra1 {[%clk
0:01:04.2]} 35. Rhe4 {[%clk 0:00:11.2]} 35... Ba3 {[%clk 0:01:04]} 36. Bxa3
{[%clk 0:00:10.4]} 36... Rxa3 {[%clk 0:01:04.2]} 37. Re7 {[%clk 0:00:08.4]}
37... c2 {[%clk 0:01:03.9]} 38. Re8+ {[%clk 0:00:08]} 38... Rxe8 {[%clk
0:01:03.5]} 39. Rxe8+ {[%clk 0:00:08.9]} 39... Kf7 {[%clk 0:01:04.4]} 40. Rc8
{[%clk 0:00:09.8]} 40... Ra2 {[%clk 0:01:05.1]} 41. Rc7+ {[%clk 0:00:09.7]}
41... Ke6 {[%clk 0:01:05.2]} 42. Kg3 {[%clk 0:00:10.6]} 42... Kd6 {[%clk
0:01:05.1]} 43. Kf3 {[%clk 0:00:11.5]} 43... Kxc7 {[%clk 0:01:05.3]} 0-1

[Event "Late-Titled-Tuesday-Blitz-September-26-2023"]
[Site "Chess.com"]
[Date "2023.09.26"]
[Round "3"]
[White "Rutricks"]
[Black "Hrant_ChessMood"]
[Result "0-1"]
[WhiteElo "2669"]
[BlackElo "2915"]
[TimeControl "180+1"]
[EndTime "14:26:42 PDT"]
[Termination "Hrant_ChessMood won by resignation"]

1. e4 {[%clk 0:02:59.5]} 1... c6 {[%clk 0:02:59.5]} 2. d4 {[%clk 0:02:56.6]}
2... d5 {[%clk 0:03:00.4]} 3. exd5 {[%clk 0:02:55.9]} 3... cxd5 {[%clk
0:03:00.3]} 4. Bd3 {[%clk 0:02:56.8]} 4... Nf6 {[%clk 0:03:00.3]} 5. h3 {[%clk
0:02:55.8]} 5... Nc6 {[%clk 0:03:00.1]} 6. c3 {[%clk 0:02:56.4]} 6... g6 {[%clk
0:03:00.6]} 7. Nf3 {[%clk 0:02:56.8]} 7... Bf5 {[%clk 0:02:59.9]} 8. O-O {[%clk
0:02:57]} 8... Bxd3 {[%clk 0:02:59.3]} 9. Qxd3 {[%clk 0:02:57.3]} 9... e6 {[%clk
0:03:00.2]} 10. Nbd2 {[%clk 0:02:57.8]} 10... Bd6 {[%clk 0:02:56.8]} 11. Re1
{[%clk 0:02:57.7]} 11... O-O {[%clk 0:02:56.4]} 12. Nf1 {[%clk 0:02:56.9]} 12...
Re8 {[%clk 0:02:56.2]} 13. Bg5 {[%clk 0:02:56.7]} 13... Be7 {[%clk 0:02:55.3]}
14. Bxf6 {[%clk 0:02:51.7]} 14... Bxf6 {[%clk 0:02:55.3]} 15. Ne3 {[%clk
0:02:52.3]} 15... Rb8 {[%clk 0:02:52.8]} 16. b4 {[%clk 0:02:47.4]} 16... Qc7
{[%clk 0:02:45.3]} 17. Ng4 {[%clk 0:02:47.5]} 17... Bg7 {[%clk 0:02:44.7]} 18.
a4 {[%clk 0:02:45.2]} 18... Rec8 {[%clk 0:02:44.9]} 19. a5 {[%clk 0:02:43.3]}
19... Ne7 {[%clk 0:02:44.1]} 20. Rec1 {[%clk 0:02:42.1]} 20... Nf5 {[%clk
0:02:44.4]} 21. Nge5 {[%clk 0:02:40.2]} 21... Nd6 {[%clk 0:02:43.8]} 22. Rc2
{[%clk 0:02:21.6]} 22... Qd8 {[%clk 0:02:32.6]} 23. Re2 {[%clk 0:02:01.5]} 23...
Rc7 {[%clk 0:02:31.3]} 24. a6 {[%clk 0:01:32.4]} 24... b6 {[%clk 0:02:19.3]} 25.
b5 {[%clk 0:01:23.5]} 25... Rbc8 {[%clk 0:02:18.4]} 26. Ra3 {[%clk 0:01:10.4]}
26... Qe8 {[%clk 0:02:17.5]} 27. Rb3 {[%clk 0:01:10.1]} 27... f6 {[%clk
0:02:05.8]} 28. Ng4 {[%clk 0:01:00.3]} 28... Ne4 {[%clk 0:02:06]} 29. Rxe4
{[%clk 0:00:55]} 29... dxe4 {[%clk 0:02:05.6]} 30. Qxe4 {[%clk 0:00:55.9]} 30...
f5 {[%clk 0:02:05.8]} 31. Qf4 {[%clk 0:00:55.7]} 31... fxg4 {[%clk 0:02:05.3]}
32. Qxg4 {[%clk 0:00:56.6]} 32... Rxc3 {[%clk 0:02:04.3]} 33. Rb2 {[%clk
0:00:54.1]} 33... Qf7 {[%clk 0:01:54.6]} 34. Ng5 {[%clk 0:00:52.9]} 34... Qf5
{[%clk 0:01:51.8]} 35. Qh4 {[%clk 0:00:53.3]} 35... h6 {[%clk 0:01:48.9]} 36.
Nf3 {[%clk 0:00:53.2]} 36... g5 {[%clk 0:01:44.6]} 37. Qh5 {[%clk 0:00:53.2]}
37... Qf4 {[%clk 0:01:40.7]} 38. Re2 {[%clk 0:00:52.5]} 38... Rc1+ {[%clk
0:01:40.2]} 39. Ne1 {[%clk 0:00:53.2]} 39... Qxd4 {[%clk 0:01:20.6]} 40. Rxe6
{[%clk 0:00:45.4]} 40... Rf8 {[%clk 0:01:19.5]} 41. Qe2 {[%clk 0:00:45.1]} 41...
Qc3 {[%clk 0:01:10.2]} 42. g3 {[%clk 0:00:36.7]} 42... Rxe1+ {[%clk 0:01:08.3]}
43. Qxe1 {[%clk 0:00:37]} 43... Qxe1+ {[%clk 0:01:09]} 44. Rxe1 {[%clk
0:00:37.3]} 44... Bd4 {[%clk 0:01:09.6]} 45. Re7 {[%clk 0:00:37.1]} 45... Rxf2
{[%clk 0:01:03.4]} 46. Rd7 {[%clk 0:00:36.7]} 46... Bc5 {[%clk 0:01:00.4]} 47.
Kh1 {[%clk 0:00:36.2]} 47... Rf1+ {[%clk 0:00:59.7]} 48. Kg2 {[%clk 0:00:36.2]}
48... Rf2+ {[%clk 0:01:00.6]} 49. Kh1 {[%clk 0:00:36.7]} 49... Rf7 {[%clk
0:01:01.1]} 50. Rd8+ {[%clk 0:00:37.3]} 50... Kg7 {[%clk 0:01:01.1]} 51. Rb8
{[%clk 0:00:38.2]} 51... Bd6 {[%clk 0:01:00.2]} 52. Rd8 {[%clk 0:00:35.5]} 52...
Bxg3 {[%clk 0:01:00.3]} 53. Kg2 {[%clk 0:00:36.3]} 53... Bf2 {[%clk 0:00:59.8]}
0-1

[Event "Late-Titled-Tuesday-Blitz-September-26-2023"]
[Site "Chess.com"]
[Date "2023.09.26"]
[Round "3"]
[White "DrCeltic"]
[Black "nitpicker"]
[Result "1-0"]
[WhiteElo "2438"]
[BlackElo "2243"]
[TimeControl "180+1"]
[EndTime "14:26:43 PDT"]
[Termination "DrCeltic won on time"]

1. e4 {[%clk 0:03:00.5]} 1... c5 {[%clk 0:02:58.6]} 2. Nf3 {[%clk 0:03:01.2]}
2... d6 {[%clk 0:02:58.3]} 3. d4 {[%clk 0:03:01.3]} 3... cxd4 {[%clk 0:02:58.6]}
4. Nxd4 {[%clk 0:03:02.2]} 4... Nf6 {[%clk 0:02:58.9]} 5. Nc3 {[%clk 0:03:03.1]}
5... Nc6 {[%clk 0:02:59.5]} 6. Bc4 {[%clk 0:03:02.7]} 6... Qb6 {[%clk
0:02:58.3]} 7. Nb3 {[%clk 0:03:03.3]} 7... e6 {[%clk 0:02:54.6]} 8. Be3 {[%clk
0:03:03.1]} 8... Qc7 {[%clk 0:02:54.8]} 9. Bd3 {[%clk 0:03:04]} 9... a6 {[%clk
0:02:54.9]} 10. f4 {[%clk 0:03:04.3]} 10... Be7 {[%clk 0:02:54.3]} 11. Qf3
{[%clk 0:03:04.7]} 11... Bd7 {[%clk 0:02:17.8]} 12. O-O-O {[%clk 0:03:04.4]}
12... O-O {[%clk 0:01:58.1]} 13. g4 {[%clk 0:03:03.8]} 13... b5 {[%clk
0:01:42.3]} 14. g5 {[%clk 0:03:03.1]} 14... Ne8 {[%clk 0:01:40.5]} 15. Kb1
{[%clk 0:03:00.6]} 15... g6 {[%clk 0:01:31.7]} 16. h4 {[%clk 0:02:58.2]} 16...
f5 {[%clk 0:01:31.9]} 17. h5 {[%clk 0:02:54.2]} 17... Rf7 {[%clk 0:01:16.8]} 18.
hxg6 {[%clk 0:02:52.3]} 18... hxg6 {[%clk 0:01:17.1]} 19. Qh3 {[%clk 0:02:49.1]}
19... Rg7 {[%clk 0:01:16.5]} 20. Qh8+ {[%clk 0:02:39]} 20... Kf7 {[%clk
0:01:16.5]} 21. exf5 {[%clk 0:02:38.7]} 21... exf5 {[%clk 0:01:02.2]} 22. Nd5
{[%clk 0:02:35]} 22... Qb7 {[%clk 0:01:00.4]} 23. Nxe7 {[%clk 0:02:18.6]} 23...
Kxe7 {[%clk 0:00:51.8]} 24. Rde1 {[%clk 0:02:15]} 24... Kf7 {[%clk 0:00:51.7]}
25. Bd2 {[%clk 0:02:10.4]} 25... Nf6 {[%clk 0:00:49.1]} 26. Qxg7+ {[%clk
0:01:42.2]} 26... Kxg7 {[%clk 0:00:48.4]} 27. gxf6+ {[%clk 0:01:43]} 27... Kg8
{[%clk 0:00:44.5]} 28. f7+ {[%clk 0:01:23.8]} 28... Kf8 {[%clk 0:00:43.2]} 29.
Bc3 {[%clk 0:01:12.7]} 29... b4 {[%clk 0:00:42.7]} 30. Rh8+ {[%clk 0:01:07.3]}
30... Kxf7 {[%clk 0:00:39.7]} 31. Rh7+ {[%clk 0:01:07.3]} 31... Kf8 {[%clk
0:00:35.5]} 32. Bf6 {[%clk 0:01:05.1]} 32... d5 {[%clk 0:00:29.2]} 33. Nc5
{[%clk 0:01:03.4]} 33... Qc7 {[%clk 0:00:28.2]} 34. Nxd7+ {[%clk 0:01:03.5]}
34... Kg8 {[%clk 0:00:17.2]} 35. Rg7+ {[%clk 0:01:03.9]} 1-0

[Event "Late-Titled-Tuesday-Blitz-September-26-2023"]
[Site "Chess.com"]
[Date "2023.09.26"]
[Round "3"]
[White "Good_Knight_Kiss"]
[Black "IgorBjelobrk"]
[Result "1-0"]
[WhiteElo "2432"]
[BlackElo "2593"]
[TimeControl "180+1"]
[EndTime "14:26:49 PDT"]
[Termination "Good_Knight_Kiss won by checkmate"]

1. e4 {[%clk 0:03:00.9]} 1... e6 {[%clk 0:02:59.5]} 2. d4 {[%clk 0:03:00.9]}
2... d5 {[%clk 0:03:00]} 3. Nc3 {[%clk 0:03:01.4]} 3... Bb4 {[%clk 0:02:59.6]}
4. exd5 {[%clk 0:03:01.3]} 4... exd5 {[%clk 0:02:59.6]} 5. Bd3 {[%clk
0:03:00.2]} 5... Nc6 {[%clk 0:02:59.6]} 6. a3 {[%clk 0:02:58.5]} 6... Bxc3+
{[%clk 0:02:59.4]} 7. bxc3 {[%clk 0:02:59.4]} 7... Nge7 {[%clk 0:02:59.8]} 8.
Qf3 {[%clk 0:02:58.8]} 8... Be6 {[%clk 0:02:55.7]} 9. Ne2 {[%clk 0:02:58.7]}
9... Qd7 {[%clk 0:02:52.6]} 10. h3 {[%clk 0:02:58.8]} 10... Bf5 {[%clk
0:02:51.5]} 11. Ng3 {[%clk 0:02:58.8]} 11... Bxd3 {[%clk 0:02:51.6]} 12. cxd3
{[%clk 0:02:59.7]} 12... O-O-O {[%clk 0:02:51.2]} 13. O-O {[%clk 0:02:59.5]}
13... h6 {[%clk 0:02:46.8]} 14. Qxf7 {[%clk 0:02:51.2]} 14... Rdf8 {[%clk
0:02:44.7]} 15. Qh5 {[%clk 0:02:48.9]} 15... Nf5 {[%clk 0:02:35.8]} 16. Qg4
{[%clk 0:02:22.5]} 16... Rf7 {[%clk 0:02:35.6]} 17. Bf4 {[%clk 0:02:14.3]} 17...
Rhf8 {[%clk 0:02:34.8]} 18. Nxf5 {[%clk 0:02:08.8]} 18... Rxf5 {[%clk
0:02:34.3]} 19. Bg3 {[%clk 0:02:09]} 19... h5 {[%clk 0:02:32]} 20. Qe2 {[%clk
0:02:02.2]} 20... Re8 {[%clk 0:02:24.9]} 21. Qd1 {[%clk 0:01:58.8]} 21... Qf7
{[%clk 0:02:18.9]} 22. Re1 {[%clk 0:01:56.5]} 22... Rf8 {[%clk 0:02:19.3]} 23.
Qe2 {[%clk 0:01:53.5]} 23... g5 {[%clk 0:02:17.6]} 24. f3 {[%clk 0:01:49.7]}
24... g4 {[%clk 0:02:02.2]} 25. fxg4 {[%clk 0:01:49.4]} 25... hxg4 {[%clk
0:02:02.5]} 26. h4 {[%clk 0:01:46.5]} 26... Qh5 {[%clk 0:01:57.5]} 27. Rab1
{[%clk 0:01:32.6]} 27... Kb8 {[%clk 0:01:50.7]} 28. Qe6 {[%clk 0:01:26.2]} 28...
R5f6 {[%clk 0:01:47.2]} 29. Qd7 {[%clk 0:01:15.7]} 29... Rc8 {[%clk 0:01:47]}
30. Bxc7+ {[%clk 0:00:47.2]} 30... Rxc7 {[%clk 0:01:42.5]} 31. Re8+ {[%clk
0:00:47]} 31... Qxe8 {[%clk 0:01:40.7]} 32. Qxe8+ {[%clk 0:00:47.9]} 32... Rc8
{[%clk 0:01:41]} 33. Qd7 {[%clk 0:00:45.1]} 33... Rc7 {[%clk 0:01:36]} 34. Qxd5
{[%clk 0:00:40.2]} 34... Rg7 {[%clk 0:01:33.3]} 35. Rf1 {[%clk 0:00:27.7]} 35...
Rfg6 {[%clk 0:01:33.4]} 36. Rf8+ {[%clk 0:00:26.4]} 36... Kc7 {[%clk 0:01:33.8]}
37. Rf7+ {[%clk 0:00:26.8]} 37... Kb6 {[%clk 0:01:30.9]} 38. Qc5+ {[%clk
0:00:23.7]} 38... Ka6 {[%clk 0:01:30.6]} 39. Qc4+ {[%clk 0:00:23]} 39... Kb6
{[%clk 0:01:30.9]} 40. Qb3+ {[%clk 0:00:22.5]} 40... Ka5 {[%clk 0:01:25.5]} 41.
Qxb7 {[%clk 0:00:19]} 41... Rg8 {[%clk 0:01:18.8]} 42. Rf5+ {[%clk 0:00:17.4]}
42... Ka4 {[%clk 0:01:17.3]} 43. Qb5+ {[%clk 0:00:16.6]} 43... Kxa3 {[%clk
0:01:17.8]} 44. Rf1 {[%clk 0:00:13.4]} 44... Ka2 {[%clk 0:01:12.4]} 45. Qb1+
{[%clk 0:00:12.3]} 45... Ka3 {[%clk 0:01:12.7]} 46. Rf2 {[%clk 0:00:09.6]} 46...
Rb8 {[%clk 0:01:10.5]} 47. Ra2# {[%clk 0:00:09.3]} 1-0

[Event "Late-Titled-Tuesday-Blitz-September-26-2023"]
[Site "Chess.com"]
[Date "2023.09.26"]
[Round "3"]
[White "ferdipy"]
[Black "zajka-molotok"]
[Result "0-1"]
[WhiteElo "2321"]
[BlackElo "2558"]
[TimeControl "180+1"]
[EndTime "14:26:53 PDT"]
[Termination "zajka-molotok won by resignation"]

1. e4 {[%clk 0:03:00.9]} 1... c5 {[%clk 0:02:59.7]} 2. d4 {[%clk 0:03:00.9]}
2... cxd4 {[%clk 0:02:59.3]} 3. c3 {[%clk 0:03:01.8]} 3... dxc3 {[%clk
0:02:58.8]} 4. Nxc3 {[%clk 0:03:02.7]} 4... d6 {[%clk 0:02:57.5]} 5. Bc4 {[%clk
0:03:03.6]} 5... Nc6 {[%clk 0:02:56.4]} 6. Nf3 {[%clk 0:03:04.1]} 6... a6 {[%clk
0:02:55.8]} 7. O-O {[%clk 0:03:03.7]} 7... Nf6 {[%clk 0:02:54.2]} 8. h3 {[%clk
0:03:04.3]} 8... e6 {[%clk 0:02:51.8]} 9. Qe2 {[%clk 0:03:04.8]} 9... Be7 {[%clk
0:02:50.9]} 10. Rd1 {[%clk 0:03:03.9]} 10... Bd7 {[%clk 0:02:44.9]} 11. Bf4
{[%clk 0:03:02.5]} 11... Qb8 {[%clk 0:02:43.7]} 12. Rac1 {[%clk 0:03:01.8]}
12... O-O {[%clk 0:02:42.8]} 13. Bb3 {[%clk 0:02:50.4]} 13... Rd8 {[%clk
0:02:34.5]} 14. Rd2 {[%clk 0:02:39.6]} 14... Ne5 {[%clk 0:02:24.7]} 15. Nd4
{[%clk 0:02:38.1]} 15... b5 {[%clk 0:02:13.9]} 16. Bg3 {[%clk 0:02:34.9]} 16...
Qb6 {[%clk 0:02:11.4]} 17. Kh2 {[%clk 0:02:30.7]} 17... Rac8 {[%clk 0:02:09.5]}
18. f4 {[%clk 0:02:29.2]} 18... Nc4 {[%clk 0:02:09.2]} 19. Rd3 {[%clk
0:02:22.6]} 19... Be8 {[%clk 0:01:48.3]} 20. Rcd1 {[%clk 0:02:20.4]} 20... b4
{[%clk 0:01:40]} 21. Na4 {[%clk 0:02:16.8]} 21... Qa5 {[%clk 0:01:39]} 22. Bxc4
{[%clk 0:02:11.5]} 22... Rxc4 {[%clk 0:01:39.5]} 23. b3 {[%clk 0:02:12]} 23...
Rcc8 {[%clk 0:01:33.8]} 24. Nb2 {[%clk 0:01:21.3]} 24... Bb5 {[%clk 0:01:22.2]}
25. Nxb5 {[%clk 0:01:15.2]} 25... axb5 {[%clk 0:01:23.1]} 26. R1d2 {[%clk
0:01:11.2]} 26... d5 {[%clk 0:01:19.3]} 27. exd5 {[%clk 0:01:06.5]} 27... Rxd5
{[%clk 0:01:17.7]} 28. Rxd5 {[%clk 0:01:04.9]} 28... Nxd5 {[%clk 0:01:18.6]} 29.
Rxd5 {[%clk 0:01:02.7]} 29... exd5 {[%clk 0:01:17.7]} 30. Qxe7 {[%clk
0:01:02.7]} 30... Qxa2 {[%clk 0:01:18]} 31. Nd3 {[%clk 0:01:00.1]} 31... Qxb3
{[%clk 0:01:15.3]} 32. Nxb4 {[%clk 0:00:59]} 32... d4 {[%clk 0:01:11]} 33. Qd7
{[%clk 0:00:51.2]} 33... Qc4 {[%clk 0:01:05.7]} 34. Nd5 {[%clk 0:00:48.2]} 34...
Rf8 {[%clk 0:01:03.9]} 35. Ne7+ {[%clk 0:00:44.8]} 35... Kh8 {[%clk 0:01:03.6]}
36. Nf5 {[%clk 0:00:32.1]} 36... d3 {[%clk 0:00:56.7]} 37. Bf2 {[%clk
0:00:26.9]} 37... Qxf4+ {[%clk 0:00:55.2]} 38. Bg3 {[%clk 0:00:25.6]} 38... Qe4
{[%clk 0:00:52.7]} 39. Qxb5 {[%clk 0:00:19.8]} 39... d2 {[%clk 0:00:50.3]} 40.
Qb3 {[%clk 0:00:16.6]} 40... Qxf5 {[%clk 0:00:48.4]} 41. Qd1 {[%clk 0:00:14.6]}
41... Rd8 {[%clk 0:00:47.8]} 0-1

[Event "Late-Titled-Tuesday-Blitz-September-26-2023"]
[Site "Chess.com"]
[Date "2023.09.26"]
[Round "3"]
[White "BillieKimbah"]
[Black "Giorno"]
[Result "1-0"]
[WhiteElo "2970"]
[BlackElo "2499"]
[TimeControl "180+1"]
[EndTime "14:26:57 PDT"]
[Termination "BillieKimbah won by resignation"]

1. d4 {[%clk 0:03:00.9]} 1... Nf6 {[%clk 0:02:55.1]} 2. Nf3 {[%clk 0:02:58.6]}
2... b6 {[%clk 0:02:53.7]} 3. Bg5 {[%clk 0:02:57.9]} 3... Bb7 {[%clk 0:02:51]}
4. Nbd2 {[%clk 0:02:57.4]} 4... c5 {[%clk 0:02:45.2]} 5. Bxf6 {[%clk 0:02:57.1]}
5... exf6 {[%clk 0:02:43.5]} 6. e3 {[%clk 0:02:57.5]} 6... Be7 {[%clk
0:02:38.7]} 7. Bd3 {[%clk 0:02:56.4]} 7... O-O {[%clk 0:02:37.7]} 8. c3 {[%clk
0:02:56.7]} 8... Re8 {[%clk 0:02:36.1]} 9. O-O {[%clk 0:02:56.6]} 9... g6 {[%clk
0:02:35.5]} 10. a4 {[%clk 0:02:55.8]} 10... Nc6 {[%clk 0:02:32.1]} 11. Re1
{[%clk 0:02:55.5]} 11... f5 {[%clk 0:02:28.9]} 12. g3 {[%clk 0:02:55.3]} 12...
Bf6 {[%clk 0:02:21.9]} 13. Qb3 {[%clk 0:02:54.1]} 13... Na5 {[%clk 0:02:21.4]}
14. Qc2 {[%clk 0:02:53.7]} 14... Qc7 {[%clk 0:02:18.4]} 15. Bf1 {[%clk
0:02:53.3]} 15... Rac8 {[%clk 0:02:16.3]} 16. Bg2 {[%clk 0:02:53.1]} 16... cxd4
{[%clk 0:02:07.7]} 17. exd4 {[%clk 0:02:51.1]} 17... Bd5 {[%clk 0:02:05.6]} 18.
Qd3 {[%clk 0:02:49.2]} 18... Nc4 {[%clk 0:02:05.2]} 19. Nxc4 {[%clk 0:02:48.6]}
19... Bxc4 {[%clk 0:02:01.8]} 20. Qc2 {[%clk 0:02:45.5]} 20... Bd5 {[%clk
0:02:01.4]} 21. Rxe8+ {[%clk 0:02:33.2]} 21... Rxe8 {[%clk 0:02:02.3]} 22. Re1
{[%clk 0:02:33.5]} 22... Be4 {[%clk 0:02:01.7]} 23. Qd1 {[%clk 0:02:32.6]} 23...
Rb8 {[%clk 0:01:58.7]} 24. Nd2 {[%clk 0:02:18.1]} 24... Bxg2 {[%clk 0:01:55.4]}
25. Kxg2 {[%clk 0:02:19]} 25... b5 {[%clk 0:01:55.7]} 26. a5 {[%clk 0:01:36]}
26... Qxa5 {[%clk 0:01:50]} 27. Qf3 {[%clk 0:01:35.8]} 27... b4 {[%clk
0:01:45.6]} 28. Nc4 {[%clk 0:01:33.2]} 28... Qc7 {[%clk 0:01:43.2]} 29. Qd5
{[%clk 0:01:33.2]} 29... bxc3 {[%clk 0:01:37.1]} 30. bxc3 {[%clk 0:01:34.1]}
30... Qc6 {[%clk 0:01:33.1]} 31. Qxc6 {[%clk 0:01:30.1]} 31... dxc6 {[%clk
0:01:34]} 32. Ra1 {[%clk 0:01:30.1]} 32... c5 {[%clk 0:01:20.1]} 33. d5 {[%clk
0:01:19.2]} 33... Bxc3 {[%clk 0:00:56.1]} 34. Rxa7 {[%clk 0:01:19]} 34... Rb4
{[%clk 0:00:42.3]} 35. Nd6 {[%clk 0:01:11.5]} 35... Rd4 {[%clk 0:00:41.6]} 36.
Nb5 {[%clk 0:01:03]} 36... Rc4 {[%clk 0:00:40.9]} 37. d6 {[%clk 0:01:00.4]}
37... Bf6 {[%clk 0:00:40.3]} 38. d7 {[%clk 0:00:58]} 38... Kg7 {[%clk
0:00:37.2]} 39. Nd6 {[%clk 0:00:54.9]} 39... Rd4 {[%clk 0:00:26.1]} 40. Ne8+
{[%clk 0:00:54.4]} 40... Kf8 {[%clk 0:00:26.3]} 41. Nxf6 {[%clk 0:00:55.3]}
41... Ke7 {[%clk 0:00:24.3]} 42. Ra8 {[%clk 0:00:48.5]} 1-0

[Event "Late-Titled-Tuesday-Blitz-September-26-2023"]
[Site "Chess.com"]
[Date "2023.09.26"]
[Round "3"]
[White "Njal28"]
[Black "KaydenTroffChess"]
[Result "1-0"]
[WhiteElo "3093"]
[BlackElo "2788"]
[TimeControl "180+1"]
[EndTime "14:26:58 PDT"]
[Termination "Njal28 won by resignation"]

1. e4 {[%clk 0:03:00.9]} 1... c5 {[%clk 0:02:59.9]} 2. Nc3 {[%clk 0:03:00.6]}
2... g6 {[%clk 0:02:59.9]} 3. h4 {[%clk 0:03:00.1]} 3... h6 {[%clk 0:02:53.6]}
4. h5 {[%clk 0:02:58.9]} 4... g5 {[%clk 0:02:52.4]} 5. Bc4 {[%clk 0:02:56.6]}
5... Bg7 {[%clk 0:02:50.7]} 6. d3 {[%clk 0:02:54.9]} 6... e6 {[%clk 0:02:44.9]}
7. f4 {[%clk 0:02:54.7]} 7... gxf4 {[%clk 0:02:40.6]} 8. Bxf4 {[%clk 0:02:55.6]}
8... a6 {[%clk 0:02:37.3]} 9. a4 {[%clk 0:02:50.6]} 9... Ne7 {[%clk 0:02:30.3]}
10. Nf3 {[%clk 0:02:45.8]} 10... d5 {[%clk 0:02:29.3]} 11. Ba2 {[%clk
0:02:46.5]} 11... d4 {[%clk 0:02:24.4]} 12. Ne2 {[%clk 0:02:46]} 12... Nbc6
{[%clk 0:02:24.5]} 13. O-O {[%clk 0:02:45.4]} 13... b5 {[%clk 0:02:17.7]} 14.
Qe1 {[%clk 0:02:44.4]} 14... Bb7 {[%clk 0:02:10.6]} 15. Qh4 {[%clk 0:02:31.6]}
15... Qd7 {[%clk 0:01:58.2]} 16. Bb3 {[%clk 0:02:27.5]} 16... b4 {[%clk
0:01:55.8]} 17. a5 {[%clk 0:02:25.7]} 17... Na7 {[%clk 0:01:53.3]} 18. Ne5
{[%clk 0:02:16.4]} 18... Bxe5 {[%clk 0:01:31.1]} 19. Bxe5 {[%clk 0:02:17.3]}
19... Rh7 {[%clk 0:01:20.5]} 20. Bf6 {[%clk 0:02:10.7]} 20... Bc6 {[%clk
0:01:10.9]} 21. Rf3 {[%clk 0:02:03.1]} 21... Bb5 {[%clk 0:01:07.6]} 22. Raf1
{[%clk 0:01:51.4]} 22... Nac6 {[%clk 0:01:05.3]} 23. Nf4 {[%clk 0:01:51.8]}
23... O-O-O {[%clk 0:00:57.3]} 24. Qh3 {[%clk 0:01:51.4]} 24... Kb7 {[%clk
0:00:50.8]} 25. Rg3 {[%clk 0:01:48.3]} 25... Rg8 {[%clk 0:00:45]} 26. Rxg8
{[%clk 0:01:23.3]} 26... Nxg8 {[%clk 0:00:45.9]} 27. Bh4 {[%clk 0:01:24]} 27...
Nge7 {[%clk 0:00:38.7]} 28. Nd5 {[%clk 0:01:24.2]} 28... Rg7 {[%clk 0:00:20.7]}
29. Bf6 {[%clk 0:01:17.8]} 29... Rg8 {[%clk 0:00:20.3]} 30. Bxe7 {[%clk
0:01:18.3]} 30... Nxe7 {[%clk 0:00:19.5]} 31. Nf6 {[%clk 0:01:19]} 31... Qd8
{[%clk 0:00:18.1]} 32. Nxg8 {[%clk 0:01:19.7]} 32... Qxg8 {[%clk 0:00:19]} 33.
Qf3 {[%clk 0:01:19.7]} 33... Be8 {[%clk 0:00:18.2]} 34. Qf6 {[%clk 0:01:11.2]}
34... Nc6 {[%clk 0:00:18.3]} 35. Qxh6 {[%clk 0:01:11]} 35... Qg4 {[%clk
0:00:18.6]} 36. Qf8 {[%clk 0:01:05.9]} 36... Bd7 {[%clk 0:00:08.6]} 37. Qxf7
{[%clk 0:01:05.9]} 37... Ne5 {[%clk 0:00:08.6]} 38. Bxe6 {[%clk 0:00:49.4]}
38... Qxe6 {[%clk 0:00:06.5]} 39. Qxe6 {[%clk 0:00:49.7]} 39... Bxe6 {[%clk
0:00:07.4]} 40. h6 {[%clk 0:00:50.5]} 40... Bd7 {[%clk 0:00:02.9]} 41. h7 {[%clk
0:00:50.2]} 41... Ng6 {[%clk 0:00:03]} 42. Rf6 {[%clk 0:00:50.9]} 42... Nh8
{[%clk 0:00:03.4]} 43. Rf8 {[%clk 0:00:51.4]} 43... Ng6 {[%clk 0:00:03.3]} 44.
Rg8 {[%clk 0:00:52.1]} 1-0